[Event "WSTCC-50 2024"]
[Site "Krakow"]
[Date "2024.07.02"]
[Round "1.24"]
[White "Noyce, Robert C"]
[Black "Cholewa, Dorota"]
[Result "1-0"]
[ECO "A36"]
[WhiteElo "2088"]
[BlackElo "1530"]
[Annotator "NA RC"]
[PlyCount "93"]
[EventDate "2024.07.01"]
[EventType "team-tourn"]
[EventCountry "POL"]
[SourceTitle "playchess.com"]
[Source "ChessBase"]
[SourceQuality "1"]
[TimeControl "40/5400+30:1800+30"]

1. c4 {[%emt 0:00:00]} c5 {[%emt 0:01:30]} 2. Nc3 {[%emt 0:00:09]} Nc6 {[%emt 0:00:30]} 3. g3 {[%emt 0:00:11]} Nf6 {[%emt 0:01:36]} 4. Bg2 {[%emt 0:00:19]} g6 {[%emt 0:01:38]} 5. e4 {[%emt 0:00:28]} e5 {[%emt 0:00:18]} 6. Nge2 {[%emt 0:00:23]} Bg7 {[%emt 0:00:37]} 7. O-O {[%emt 0:00:49]} O-O {[%emt 0:00:13]} 8. d3 {[%emt 0:03:26]} d6 {[%emt 0:02:23]} 9. f4 {[%emt 0:03:01]} Bg4 {[%emt 0:13:23]} 10. h3 {[%emt 0:01:21]} Bxe2 {[%emt 0:00:30]} 11. Nxe2 {[%emt 0:02:18]} Rb8 {[%emt 0:05:25]} 12. f5 {[%emt 0:01:01]} Qc7 {[%emt 0:05:22]} 13. g4 {[%emt 0:01:44]} b5 {[%emt 0:01:19]} 14. g5 {[%emt 0:03:39]} Nh5 {[%emt 0:00:59]} 15. f6 {[%emt 0:01:01]} Bh8 {[%emt 0:00:39]} 16. Bf3 {[%emt 0:01:20]} Nf4 {[%emt 0:26:41]} 17. Bxf4 {[%emt 0:04:32]} exf4 {[%emt 0:00:12]} 18. b3 {[%emt 0:09:51]} h6 {[%emt 0:12:04]} 19. h4 {[%emt 0:01:58]} Ne5 {[%emt 0:01:54]} 20. Nxf4 {[%emt 0:00:57]} Nxf3+ {[%emt 0:00:13]} 21. Qxf3 {[%emt 0:00:27]} h5 {[%emt 0:03:11]} 22. Rae1 {[%emt 0:05:15]} Rfe8 {[%emt 0:02:02]} 23. Re2 {[%emt 0:01:24]} Qd7 {[%emt 0:02:11]} 24. Rfe1 {[%emt 0:01:12]} Re5 {[%emt 0:00:45]} 25. Kg2 {[%emt 0:03:20]} a5 {[%emt 0:01:55]} 26. cxb5 {[%emt 0:00:37]} Rxb5 {[%emt 0:00:39]} 27. Nd5 {[%emt 0:00:23]} Rb8 {[%emt 0:03:43]} 28. Ne3 {[%emt 0:01:39]} Ra8 {[%emt 0:01:44]} 29. Nc4 {[%emt 0:00:20]} Ree8 {[%emt 0:00:25]} 30. Nb6 {[%emt 0:00:21]} Qg4+ {[%emt 0:00:05]} 31. Qxg4 {[%emt 0:00:10]} hxg4 {[%emt 0:00:01]} 32. Nxa8 Rxa8 {[%emt 0:00:02]} 33. e5 {[%emt 0:00:30]} dxe5 {[%emt 0:01:32]} 34. Rxe5 {[%emt 0:00:09]} Kh7 {[%emt 0:00:55]} 35. Rxc5 {[%emt 0:00:51]} a4 {[%emt 0:01:12]} 36. bxa4 {[%emt 0:00:40]} Rxa4 {[%emt 0:00:02]} 37. Re2 {[%emt 0:00:27]} Ra3 {[%emt 0:00:19]} 38. Rd2 {[%emt 0:00:15]} Ra4 {[%emt 0:00:47]} 39. Rc4 {[%emt 0:00:41]} Ra5 {[%emt 0:00:24]} 40. Rxg4 {[%emt 0:00:21]} Rf5 {[%emt 0:00:09]} 41. d4 {[%emt 0:30:16]} Bxf6 {[%emt 0:30:09]} 42. gxf6 {[%emt 0:00:10]} Rxf6 {[%emt 0:00:02]} 43. d5 {[%emt 0:00:12]} Rd6 {[%emt 0:00:00]} 44. Rc4 {[%emt 0:00:12]} Rf6 {[%emt 0:00:15]} 45. Rc6 {[%emt 0:00:10]} Rf4 {[%emt 0:00:02]} 46. d6 {[%emt 0:00:28]} Rxh4 {[%emt 0:01:48]} 47. d7 {[%emt 0:00:31]} 1-0

[Event "WSTCC-50 2024"]
[Site "Krakow"]
[Date "2024.07.03"]
[Round "2.1"]
[White "Plotkin, Victor"]
[Black "Ehlvest, Jaan"]
[Result "0-1"]
[ECO "C55"]
[WhiteElo "2264"]
[BlackElo "2528"]
[Annotator "TA"]
[PlyCount "64"]
[EventDate "2024.07.01"]
[EventType "team-tourn"]
[EventCountry "POL"]
[SourceTitle "playchess.com"]
[Source "ChessBase"]
[SourceQuality "1"]
[TimeControl "40/5400+30:1800+30"]

{[%evp 12,64,50,23,6,16,42,29,31,15,9,0,0,0,0,0,4,-19,-22,-16,-7,-21,0,-17,-11,-27,-15,-36,-32,-24,-22,-49,-46,-51,-52,-60,-62,-67,-58,-111,-85,-91,-106,-104,-102,-106,-112,-119,-116,-107,-112,-97,-109,-532,-539]} 1. e4 {[%emt 0:00:03]} e5 {[%emt 0:00:18]} 2. Nf3 {[%emt 0:00:06]} Nc6 {[%emt 0:00:05]} 3. Bc4 {[%emt 0:00:05]} Nf6 {[%emt 0:00:16]} 4. d3 {[%emt 0:00:06]} d5 {[%emt 0:00:16]} 5. exd5 {[%emt 0:00:25]} Nxd5 {[%emt 0:00:07]} 6. O-O {[%emt 0:01:15]} Bg4 {[%emt 0:03:42]} 7. h3 {[%emt 0:06:42]} Bh5 {[%emt 0:00:11]} 8. Re1 {[%emt 0:00:57]} Qd6 {[%emt 0:00:09]} 9. Nbd2 {[%emt 0:10:08]} O-O-O {[%emt 0:00:28] White has an edge.} 10. Ne4 {[%emt 0:02:06]} Qd7 {[%emt 0:01:10]} 11. Ng3 {[%emt 0:05:17][%csl LRe5,LRh5]} Bxf3 {[%emt 0:03:25]} 12. Qxf3 {[%emt 0:00:33]} Nd4 {[%emt 0:00:07][%csl LRc2,LRf3]} 13. Qd1 {[%emt 0:03:40]} Nb6 {[%emt 0:00:16]} 14. Bb3 {[%emt 0:04:00]} f6 {[%emt 0:07:41]} 15. Be3 {[%emt 0:03:32]} Kb8 {[%emt 0:02:50]} 16. Bxd4 {[%emt 0:09:40]} Qxd4 {[%emt 0:00:20]} 17. Rb1 {[%emt 0:02:06]} g6 {[%emt 0:03:46]} 18. Qe2 {[%emt 0:07:01]} Bh6 {[%emt 0:07:59]} 19. Qg4 {[%emt 0:06:51]} Qd6 {[%emt 0:05:15]} 20. Ne4 {[%emt 0:01:31]} Qf8 {[%emt 0:12:55] [#] Threatens to win with ...f5.} 21. Qf3 {[%emt 0:05:25]} f5 {[%emt 0:03:12]} 22. Nc3 {[%emt 0:00:21]} Qd6 {[%emt 0:01:38]} 23. a4 {[%emt 0:04:54]} a6 {[%emt 0:04:30]} 24. Re2 {[%emt 0:02:06]} Bg7 {[%emt 0:00:29]} 25. Nd1 {[%emt 0:10:56]} ({White should play} 25. Ree1 $15) 25... Nd7 $17 {[%emt 0:06:08][%cal Bb6d7,Bd7c5,Bc5e4][%mdl 32]} 26. Nc3 {[%emt 0:01:20]} Rhf8 {[%emt 0:01:15][%cal Oe5e4]} 27. Qd5 {[%emt 0:02:20]} Nc5 {[%emt 0:01:47]} 28. Qxd6 {[%emt 0:00:11]} Rxd6 {[%emt 0:00:38]} 29. Bc4 {[%emt 0:04:28] [#]} e4 $1 {[%emt 0:00:46][%mdl 512]} 30. dxe4 {[%emt 0:02:53]} (30. b4 Nxd3) 30... Bxc3 {[%emt 0:01:22]} 31. bxc3 {[%emt 0:00:01]} Nxe4 {[%emt 0:04:31]} 32. Re3 {[%emt 0:01:44][%mdl 8192]} (32. Ra1 $17 {is a better chance.}) 32... Nd2 $1 {[%emt 0:00:39][%csl LRb1,LRc4] Weighted Error Value: White=0.37/Black=0.01 (flawless) .  Loses game:     	White=1     	---        Mistake:       	White=1     	---        Inaccurate:     	White=1     	---        OK:         	White=9     	Black=15     Best:        	---       	Black=3} 0-1

[Event "WSTCC-50 2024"]
[Site "Krakow"]
[Date "2024.07.03"]
[Round "2.1"]
[White "Westphal, Wolfgang"]
[Black "Sokolin, Leonid"]
[Result "0-1"]
[ECO "A00"]
[WhiteElo "2172"]
[BlackElo "2454"]
[Annotator "TA"]
[PlyCount "90"]
[EventDate "2024.07.01"]
[EventType "team-tourn"]
[EventCountry "POL"]
[SourceTitle "playchess.com"]
[Source "ChessBase"]
[SourceQuality "1"]
[TimeControl "40/5400+30:1800+30"]

{[%evp 9,90,1,-3,-6,0,-4,-12,-4,0,-18,-15,-29,-29,-43,-26,-27,-7,-39,-18,-61,-33,-39,-33,-82,-50,-51,-56,-25,-45,-57,-49,-56,-43,-68,-77,-141,-158,-145,-130,-156,-103,-81,-81,-72,-53,-101,-90,-89,-83,-120,-122,-289,-293,-258,-295,-367,-292,-293,-285,-262,-220,-341,-338,-287,-181,-195,-191,-779,-703,-896,-835,-1409,-1410,-1811,-1841,-1939,-1671,-29968,-29970,-29977,-29978,-29977,-29961]} 1. Nc3 {[%emt 0:00:04]} c5 {[%emt 0:04:15]} 2. Nf3 {[%emt 0:00:26]} Nc6 {[%emt 0:00:19]} 3. d4 {[%emt 0:00:17]} cxd4 {[%emt 0:04:53]} 4. Nxd4 {[%emt 0:00:27]} Nf6 {[%emt 0:00:12]} 5. Nxc6 {[%emt 0:00:37]} bxc6 {[%emt 0:00:14]} (5... dxc6 {simplifies} 6. Qxd8+ Kxd8 7. e4 e5) 6. e4 {[%emt 0:00:34]} d5 {[%emt 0:09:28]} 7. exd5 {[%emt 0:01:45]} cxd5 {[%emt 0:00:37]} 8. Bb5+ {[%emt 0:05:54] The position is equal.} Bd7 {[%emt 0:00:11]} 9. O-O {[%emt 0:00:32]} e6 {[%emt 0:02:01]} 10. Bf4 {[%emt 0:07:25]} Be7 {[%emt 0:02:11]} 11. Re1 {[%emt 0:00:50]} O-O {[%emt 0:00:47]} 12. Bd3 {[%emt 0:00:21]} Bc6 {[%emt 0:03:48]} 13. Qf3 {[%emt 0:11:09]} Qb6 {[%emt 0:06:53][%cal Od5d4]} 14. Qh3 {[%emt 0:00:42]} (14. a4 {simplifies} d4 15. a5 Bxf3 16. axb6 dxc3 17. gxf3 axb6 18. bxc3 Nd5 19. Bd2) 14... Rfe8 {[%emt 0:08:18][%cal Og7g6]} (14... Qxb2 $2 15. Be5 Qb7 16. Bxf6 $18) 15. Be5 {[%emt 0:09:55]} g6 {[%emt 0:08:35]} (15... Qxb2 $2 {perishes.} 16. Nxd5 Bxd5 17. Bxb2 $18) 16. Rab1 {[%emt 0:16:35]} (16. Rad1 $15 {is more appropriate.}) 16... Rad8 {[%emt 0:07:02]} (16... Nd7 {is interesting.} 17. Bxg6 fxg6 18. Qxe6+ Kf8) 17. Ne2 {[%emt 0:04:29]} Nd7 {[%emt 0:03:36]} 18. Bd4 {[%emt 0:00:15]} Bc5 {[%emt 0:02:40]} 19. Bxc5 {[%emt 0:00:50]} Nxc5 {[%emt 0:01:23]} 20. Nd4 {[%emt 0:05:51]} Bd7 {[%emt 0:01:54]} 21. Qh4 {[%emt 0:01:11]} e5 {[%emt 0:01:41][%cal Oc5d3] White must now prevent ...Nxd3!} 22. Nf3 {[%emt 0:01:17]} (22. Nb3 $142) 22... e4 $17 {[%emt 0:02:22]} 23. Ng5 {[%emt 0:00:07]} h5 {[%emt 0:00:03] Active counter play!} ({Worse is} 23... exd3 24. Qxh7+ Kf8 25. Qxf7#) 24. Bf1 {[%emt 0:00:42] [#]} Qf6 {[%emt 0:00:59]} ({Black should try} 24... Bf5 $1 25. Qg3 Nd7) 25. Qg3 {[%emt 0:01:35]} Bf5 $36 {[%emt 0:05:36][%mdl 2048] White is under strong pressure.} 26. h4 {[%emt 0:01:08]} d4 {[%emt 0:00:40]} 27. Bc4 {[%emt 0:00:08]} (27. b4 $15 Nb7 28. Bc4) 27... Re7 {[%emt 0:00:09]} 28. Rbd1 {[%emt 0:03:03]} Kg7 {[%emt 0:01:30]} 29. Qa3 {[%emt 0:01:25]} Qb6 {[%emt 0:03:16]} 30. c3 $2 {[%emt 0:05:43] White does not recover from this.} (30. b4 $17 Nb7 31. Bb3) 30... d3 $19 {[%emt 0:02:14]} 31. b4 {[%emt 0:00:25] [#]} Nb7 {[%emt 0:01:45] aiming for ...e3.} 32. Re3 {[%emt 0:02:49]} f6 {[%emt 0:02:15]} 33. Nf3 {[%emt 0:00:17]} Qc7 {[%emt 0:01:01]} 34. Nd2 {[%emt 0:00:13][%cal Od1e1]} Nd6 {[%emt 0:01:08]} 35. Qb3 {[%emt 0:00:19]} (35. Qa5 {was called for.}) 35... Bg4 {[%emt 0:00:28]} 36. Rde1 {[%emt 0:00:25]} Be2 {[%emt 0:00:40] Threatens to win with ...Nf5.} 37. Bd5 {[%emt 0:00:37][%cal Oc3c4]} f5 38. Rg3 $2 {[%emt 0:02:23]} (38. c4) 38... f4 {[%emt 0:04:31]} 39. Rg5 {[%emt 0:00:05]} e3 {[%emt 0:01:25]} 40. fxe3 {[%emt 0:01:49]} fxe3 {[%emt 0:00:01]} 41. Nf3 {[%emt 0:30:34]} Bxf3 {[%emt 0:32:14]} 42. Bxf3 {[%emt 0:00:08]} d2 {[%emt 0:00:33]} 43. Re2 {[%emt 0:05:14]} Ne4 {[%emt 0:01:53] Black mates.} 44. Rd5 {[%emt 0:04:47]} Rxd5 {[%emt 0:01:02]} 45. Qxd5 {[%emt 0:00:08]} Nxc3 {[%emt 0:00:27] Weighted Error Value: White=0.86/Black=0.12 (very precise) .  Loses game:     	White=1     	---        Mistake:       	White=5     	Black=1      Inaccurate:     	White=3     	Black=3      OK:         	White=12    	Black=14     Best:        	White=2     	Black=4} 0-1

[Event "WSTCC-50 2024"]
[Site "Krakow"]
[Date "2024.07.03"]
[Round "2.1"]
[White "Mitchell, Martin"]
[Black "Jhunjhnuwala, Suresh"]
[Result "0-1"]
[ECO "A57"]
[WhiteElo "2159"]
[BlackElo "1888"]
[Annotator "RC"]
[PlyCount "50"]
[EventDate "2024.07.01"]
[EventType "team-tourn"]
[EventCountry "POL"]
[SourceTitle "playchess.com"]
[Source "ChessBase"]
[SourceQuality "1"]
[TimeControl "40/5400+30:1800+30"]

1. d4 {[%emt 0:00:05]} Nf6 {[%emt 0:00:06]} 2. c4 {[%emt 0:00:12]} c5 {[%emt 0:00:05]} 3. d5 {[%emt 0:00:21]} b5 {[%emt 0:00:07]} 4. Qc2 {[%emt 0:01:40]} b4 {[%emt 0:01:08]} 5. e4 {[%emt 0:00:46]} d6 {[%emt 0:00:48]} 6. f4 {[%emt 0:01:32]} g6 {[%emt 0:11:58]} 7. Nf3 {[%emt 0:09:42]} Bg7 {[%emt 0:01:05]} 8. e5 {[%emt 0:04:26]} Nfd7 {[%emt 0:11:21]} 9. e6 {[%emt 0:07:24]} fxe6 {[%emt 0:04:13]} 10. dxe6 {[%emt 0:13:47]} Nf6 {[%emt 0:00:52]} 11. Ng5 {[%emt 0:01:19]} O-O {[%emt 0:09:36]} 12. Bd3 {[%emt 0:08:10]} Nc6 {[%emt 0:02:42]} 13. Nxh7 {[%emt 0:10:16]} Nxh7 {[%emt 0:02:35]} 14. Bxg6 {[%emt 0:00:07]} Nf6 {[%emt 0:00:35]} 15. f5 {[%emt 0:01:06]} Nd4 {[%emt 0:02:43]} 16. Qf2 {[%emt 0:01:41]} Nxe6 {[%emt 0:04:43]} 17. fxe6 {[%emt 0:00:18]} Bxe6 {[%emt 0:02:13]} 18. Qh4 {[%emt 0:01:04]} Bf7 {[%emt 0:04:04]} 19. Bc2 {[%emt 0:00:43]} Qd7 {[%emt 0:02:35]} 20. O-O {[%emt 0:13:26]} Qg4 {[%emt 0:01:29]} 21. Qf2 {[%emt 0:03:29]} Ne4 {[%emt 0:02:39]} 22. Bxe4 {[%emt 0:00:43]} Qxe4 {[%emt 0:00:42]} 23. Nd2 {[%emt 0:01:56]} Qd3 {[%emt 0:06:06]} 24. Nf3 {[%emt 0:00:31]} Bxc4 {[%emt 0:00:48]} 25. Bg5 {[%emt 0:01:44]} Bd4 {[%emt 0:01:33]} 0-1

[Event "WSTCC-50 2024"]
[Site "Krakow"]
[Date "2024.07.03"]
[Round "2.2"]
[White "Khachiyan, Melikset"]
[Black "Cummings, David H."]
[Result "1/2-1/2"]
[ECO "B12"]
[WhiteElo "2435"]
[BlackElo "2314"]
[Annotator "TA"]
[PlyCount "82"]
[EventDate "2024.07.01"]
[EventType "team-tourn"]
[EventCountry "POL"]
[SourceTitle "playchess.com"]
[Source "ChessBase"]
[SourceQuality "1"]
[TimeControl "40/5400+30:1800+30"]

{[%evp 10,82,15,8,26,25,26,32,25,0,0,0,3,0,0,0,0,0,0,-11,0,-7,18,17,18,21,32,14,31,33,44,32,23,13,16,7,8,6,0,0,-4,-7,9,-12,27,14,25,19,35,39,38,33,41,28,52,58,77,20,25,10,9,4,6,0,0,0,16,13,12,0,0,0,13,0,0]} 1. e4 {[%emt 0:00:05]} c6 {[%emt 0:00:15]} 2. d4 {[%emt 0:00:06]} d5 {[%emt 0:00:05]} 3. e5 {[%emt 0:00:03]} Bf5 {[%emt 0:00:24]} 4. Nd2 {[%emt 0:00:05]} e6 {[%emt 0:01:07]} 5. Nb3 {[%emt 0:00:05]} Nd7 {[%emt 0:03:43]} 6. Nf3 {[%emt 0:00:08]} h6 {[%emt 0:01:18]} 7. Be2 {[%emt 0:00:05]} Ne7 {[%emt 0:00:30]} 8. O-O {[%emt 0:00:05]} Bh7 {[%emt 0:04:23] White is slightly better.} 9. Ne1 {[%emt 0:06:36]} c5 {[%emt 0:02:08]} 10. Nxc5 {[%emt 0:01:52]} Nxc5 {[%emt 0:00:26]} 11. dxc5 {[%emt 0:00:05]} Nc6 {[%emt 0:00:57][%csl LRc5,LRe5]} 12. Nd3 {[%emt 0:00:42]} Bxd3 {[%emt 0:05:28]} 13. Qxd3 {[%emt 0:01:19][%cal Ob2b4]} Bxc5 {[%emt 0:12:48][%cal Od8c7]} 14. Qg3 {[%emt 0:00:36]} g6 {[%emt 0:08:52]} 15. c3 {[%emt 0:09:42]} a5 {[%emt 0:04:55]} 16. Bb5 {[%emt 0:09:11]} Qc7 {[%emt 0:02:31]} 17. Re1 {[%emt 0:02:18]} Kf8 {[%emt 0:09:23]} 18. Be3 {[%emt 0:05:05]} Ne7 {[%emt 0:00:53]} 19. Bd3 {[%emt 0:00:27]} Bxe3 {[%emt 0:05:22]} 20. Rxe3 {[%emt 0:00:15]} Nf5 {[%emt 0:01:37]} 21. Bxf5 {[%emt 0:00:36]} gxf5 {[%emt 0:00:45]} 22. Rd1 {[%emt 0:07:28]} Qc4 {[%emt 0:06:48]} 23. b3 {[%emt 0:01:13]} Qg4 {[%emt 0:00:53]} 24. Rd4 {[%emt 0:12:57]} Qxg3 {[%emt 0:01:26]} 25. hxg3 $11 {[%emt 0:00:15][%mdl 4096] Endgame. KRR-KRR} Rc8 {[%emt 0:04:48]} 26. Kf1 {[%emt 0:02:06]} f6 {[%emt 0:04:32]} 27. exf6 {[%emt 0:09:11]} Kf7 {[%emt 0:00:10]} 28. g4 {[%emt 0:00:07]} Kxf6 {[%emt 0:04:15]} 29. gxf5 {[%emt 0:00:11]} Kxf5 {[%emt 0:00:24]} 30. g3 {[%emt 0:02:50] And now Rf4+ would win.} Rc6 {[%emt 0:02:16]} 31. Rf4+ {[%emt 0:01:37]} Kg5 {[%emt 0:05:23]} 32. c4 {[%emt 0:05:41]} dxc4 {[%emt 0:01:41]} 33. bxc4 {[%emt 0:00:19]} ({Better is} 33. Re5+ $16 Kg6 34. Rxc4 (34. bxc4 b6 $14) 34... Rxc4 35. bxc4) 33... b6 {[%emt 0:01:02]} 34. Kg2 {[%emt 0:03:30]} Rd8 {[%emt 0:01:25] The position is equal.} 35. Ref3 {[%emt 0:03:16]} Rc5 {[%emt 0:01:15]} 36. Rf6 {[%emt 0:03:09]} Rd6 {[%emt 0:01:10]} 37. R3f4 {[%emt 0:07:15]} Rdc6 {[%emt 0:00:40]} 38. Kh3 {[%emt 0:02:27] [#] Hoping for Rf7.} h5 $1 {[%emt 0:01:29]} 39. Rf8 {[%emt 0:02:31] White threatens R4f6 and mate.} Rc8 {[%emt 0:01:01]} 40. R8f6 {[%emt 0:02:00]} R8c6 {[%emt 0:00:25]} 41. Rf8 {[%emt 0:30:32] White wants to mate with R4f6.} Rc8 {[%emt 0:31:05] Weighted Error Value: White=0.08 (flawless) /Black=0.07 (flawless) .  Mistake:       	White=1     	---        Inaccurate:     	---       	Black=1      OK:         	White=12    	Black=15     Best:        	---       	Black=1      Strong:       	---       	Black=1} 1/2-1/2